[Event "Titled Tuesday Blitz September 14 2021"]
[White "Petrovskyi, Vadym"]
[Black "Mirzoev, Azer"]
[WhiteFideId "14165210"]
[BlackFideId "13400304"]
[WhiteElo "2334"]
[BlackElo "2525"]
[Result "0-1"]
[Round "09"]
[TimeControl "180+1"]
[Date "2021.09.15"]
[WhiteClock "0:00:06"]
[BlackClock "0:00:04"]

1. e4 {[%clk 0:03:00]}  Nf6 {[%clk 0:03:00]} 2. e5 {[%clk 0:03:00]}  Nd5 {[%clk 0:03:00]} 3. d4 {[%clk 0:03:01]}  d6 {[%clk 0:03:00]} 4. c4 {[%clk 0:03:01]}  Nb6 {[%clk 0:03:01]} 5. exd6 {[%clk 0:03:01]}  exd6 {[%clk 0:03:01]} 6. Nc3 {[%clk 0:03:01]}  Be7 {[%clk 0:03:01]} 7. Nf3 {[%clk 0:03:01]}  Bg4 {[%clk 0:03:01]} 8. Be3 {[%clk 0:03:00]}  Nc6 {[%clk 0:03:00]} 9. b3 {[%clk 0:03:01]}  O-O {[%clk 0:02:54]} 10. Be2 {[%clk 0:03:00]}  Re8 {[%clk 0:02:52]} 11. O-O {[%clk 0:03:00]}  Bf6 {[%clk 0:02:50]} 12. Qd2 {[%clk 0:03:00]}  h6 {[%clk 0:02:49]} 13. h3 {[%clk 0:03:00]}  Bh5 {[%clk 0:02:48]} 14. Rfe1 {[%clk 0:02:58]}  Ne7 {[%clk 0:02:32]} 15. Ne4 {[%clk 0:02:52]}  Nf5 {[%clk 0:02:27]} 16. Nxf6+ {[%clk 0:02:48]}  Qxf6 {[%clk 0:02:26]} 17. Bf4 {[%clk 0:02:37]}  Rxe2 {[%clk 0:02:07]} 18. Qxe2 {[%clk 0:01:54]}  Nxd4 {[%clk 0:02:07]} 19. Qe4 {[%clk 0:01:44]}  Nxf3+ {[%clk 0:02:01]} 20. gxf3 {[%clk 0:01:44]}  g5 {[%clk 0:02:00]} 21. Bg3 {[%clk 0:01:23]}  Bxf3 {[%clk 0:02:00]} 22. Qe3 {[%clk 0:01:21]}  Qf5 {[%clk 0:01:55]} 23. Rac1 {[%clk 0:01:15]}  Nd7 {[%clk 0:01:53]} 24. Rc3 {[%clk 0:01:12]}  Bc6 {[%clk 0:01:50]} 25. Kh2 {[%clk 0:01:11]}  Nc5 {[%clk 0:01:47]} 26. b4 {[%clk 0:01:05]}  Na4 {[%clk 0:01:26]} 27. b5 {[%clk 0:01:04]}  Bd7 {[%clk 0:01:25]} 28. Rd3 {[%clk 0:00:58]}  Qxh3+ {[%clk 0:01:18]} 29. Kg1 {[%clk 0:00:58]}  Nc5 {[%clk 0:01:19]} 30. Rd5 {[%clk 0:00:53]}  b6 {[%clk 0:01:17]} 31. Qf3 {[%clk 0:00:25]}  Rf8 {[%clk 0:01:09]} 32. Qf6 {[%clk 0:00:23]}  Be6 {[%clk 0:01:07]} 33. Rd4 {[%clk 0:00:23]}  Qf5 {[%clk 0:00:51]} 34. Qe7 {[%clk 0:00:21]}  Rc8 {[%clk 0:00:44]} 35. Re3 {[%clk 0:00:16]}  Kg7 {[%clk 0:00:40]} 36. Kg2 {[%clk 0:00:12]}  Qf6 {[%clk 0:00:40]} 37. Qxf6+ {[%clk 0:00:11]}  Kxf6 {[%clk 0:00:40]} 38. Re1 {[%clk 0:00:10]}  Kg6 {[%clk 0:00:40]} 39. f3 {[%clk 0:00:10]}  h5 {[%clk 0:00:40]} 40. Bf2 {[%clk 0:00:11]}  h4 {[%clk 0:00:40]} 41. Rc1 {[%clk 0:00:10]}  Rh8 {[%clk 0:00:39]} 42. Rd2 {[%clk 0:00:10]}  Rg8 {[%clk 0:00:38]} 43. Bxc5 {[%clk 0:00:10]}  dxc5 {[%clk 0:00:36]} 44. Kf2 {[%clk 0:00:10]}  Kf5 {[%clk 0:00:36]} 45. Ke3 {[%clk 0:00:10]}  Ra8 {[%clk 0:00:35]} 46. Rd3 {[%clk 0:00:09]}  a6 {[%clk 0:00:27]} 47. Ra3 {[%clk 0:00:09]}  a5 {[%clk 0:00:28]} 48. Rd3 {[%clk 0:00:09]}  Ke5 {[%clk 0:00:27]} 49. a3 {[%clk 0:00:09]}  f5 {[%clk 0:00:24]} 50. Rd2 {[%clk 0:00:09]}  f4+ {[%clk 0:00:24]} 51. Kf2 {[%clk 0:00:09]}  Rh8 {[%clk 0:00:20]} 52. Re1+ {[%clk 0:00:09]}  Kf6 {[%clk 0:00:19]} 53. Re4 {[%clk 0:00:09]}  h3 {[%clk 0:00:18]} 54. Kg1 {[%clk 0:00:09]}  Bf5 {[%clk 0:00:15]} 55. Ree2 {[%clk 0:00:09]}  Be6 {[%clk 0:00:14]} 56. Re4 {[%clk 0:00:08]}  Rh7 {[%clk 0:00:14]} 57. Kh2 {[%clk 0:00:08]}  Rd7 {[%clk 0:00:13]} 58. Rde2 {[%clk 0:00:04]}  Rd6 {[%clk 0:00:13]} 59. Kg1 {[%clk 0:00:03]}  Bf5 {[%clk 0:00:12]} 60. Re8 {[%clk 0:00:02]}  Re6 {[%clk 0:00:10]} 61. Rf8+ {[%clk 0:00:02]}  Ke7 {[%clk 0:00:10]} 62. Rxe6+ {[%clk 0:00:03]}  Bxe6 {[%clk 0:00:10]} 63. Rh8 {[%clk 0:00:03]}  Bxc4 {[%clk 0:00:10]} 64. Rxh3 {[%clk 0:00:03]}  Bxb5 {[%clk 0:00:09]} 65. Rh5 {[%clk 0:00:03]}  Bc6 {[%clk 0:00:08]} 66. Kf2 {[%clk 0:00:03]}  Kd6 {[%clk 0:00:06]} 67. Rxg5 {[%clk 0:00:04]}  b5 {[%clk 0:00:06]} 68. Ke2 {[%clk 0:00:04]}  b4 {[%clk 0:00:06]} 69. axb4 {[%clk 0:00:05]}  axb4 {[%clk 0:00:06]} 70. Rg4 {[%clk 0:00:06]}  Ke5 {[%clk 0:00:05]} 71. Rg5+ {[%clk 0:00:06]}  Kd4 {[%clk 0:00:05]} 72. Rf5 {[%clk 0:00:06]}  Bb5+ {[%clk 0:00:05]} 73. Kd2 {[%clk 0:00:06]}  c4 {[%clk 0:00:04]} 74. Rxf4+ {[%clk 0:00:07]}  Kc5 {[%clk 0:00:04]} 75. Rf5+ {[%clk 0:00:07]}  Kb6 {[%clk 0:00:04]} 76. Kc2 {[%clk 0:00:07]}  Ba4+ {[%clk 0:00:04]} 77. Kb2 {[%clk 0:00:07]}  c3+ {[%clk 0:00:04]} 78. Kb1 {[%clk 0:00:08]}  c5 {[%clk 0:00:04]} 79. f4 {[%clk 0:00:08]}  Bb5 {[%clk 0:00:04]} 80. Rd5 {[%clk 0:00:07]}  Bc4 {[%clk 0:00:04]} 81. Rd6+ {[%clk 0:00:07]}  Kc7 {[%clk 0:00:04]} 82. Rh6 {[%clk 0:00:05]}  Bd5 {[%clk 0:00:04]} 83. Rh3 {[%clk 0:00:04]}  Be4+ {[%clk 0:00:02]} 84. Kc1 {[%clk 0:00:04]}  Kc6 {[%clk 0:00:03]} 85. Re3 {[%clk 0:00:04]}  Kd5 {[%clk 0:00:02]} 86. Re1 {[%clk 0:00:05]}  Kd4 {[%clk 0:00:02]} 87. Re2 {[%clk 0:00:05]}  b3 {[%clk 0:00:02]} 88. Rf2 {[%clk 0:00:04]}  b2+ {[%clk 0:00:02]} 89. Rxb2 {[%clk 0:00:04]}  cxb2+ {[%clk 0:00:03]} 90. Kxb2 {[%clk 0:00:05]}  Bd3 {[%clk 0:00:03]} 91. f5 {[%clk 0:00:06]}  Ke5 {[%clk 0:00:03]} 92. Kc3 {[%clk 0:00:07]}  c4 {[%clk 0:00:04]} 93. f6 {[%clk 0:00:06]}  Kxf6 {[%clk 0:00:04]} 0-1


[Site "https://www.chess.com"]

[Event "Titled Tuesday Blitz September 14 2021"]
[White "Poormosavi, Seyed Kian"]
[Black "Vasquez Schroeder, Rodrigo"]
[WhiteFideId "12585807"]
[BlackFideId "3400042"]
[WhiteElo "2134"]
[BlackElo "2568"]
[Result "0-1"]
[Round "09"]
[TimeControl "180+1"]
[Date "2021.09.15"]
[WhiteClock "0:00:04"]
[BlackClock "0:00:20"]

1. e4 {[%clk 0:02:57]}  c5 {[%clk 0:02:58]} 2. Nf3 {[%clk 0:02:56]}  d6 {[%clk 0:02:59]} 3. c3 {[%clk 0:02:53]}  Nf6 {[%clk 0:02:58]} 4. Bd3 {[%clk 0:02:53]}  Bg4 {[%clk 0:02:58]} 5. h3 {[%clk 0:02:50]}  Bh5 {[%clk 0:02:50]} 6. e5 {[%clk 0:02:45]}  dxe5 {[%clk 0:02:48]} 7. Qa4+ {[%clk 0:02:44]}  Nbd7 {[%clk 0:02:47]} 8. Nxe5 {[%clk 0:02:44]}  a6 {[%clk 0:02:42]} 9. Nxd7 {[%clk 0:02:24]}  Qxd7 {[%clk 0:02:41]} 10. Qxd7+ {[%clk 0:02:21]}  Nxd7 {[%clk 0:02:40]} 11. O-O {[%clk 0:02:14]}  O-O-O {[%clk 0:02:32]} 12. Na3 {[%clk 0:02:10]}  Ne5 {[%clk 0:02:26]} 13. Be4 {[%clk 0:02:05]}  e6 {[%clk 0:02:21]} 14. b3 {[%clk 0:01:23]}  Nd3 {[%clk 0:02:18]} 15. Nc4 {[%clk 0:01:20]}  f6 {[%clk 0:02:11]} 16. Ba3 {[%clk 0:01:12]}  Bg6 {[%clk 0:02:00]} 17. Bxd3 {[%clk 0:01:05]}  Bxd3 {[%clk 0:01:58]} 18. Rfe1 {[%clk 0:01:06]}  e5 {[%clk 0:01:52]} 19. Nb6+ {[%clk 0:01:06]}  Kc7 {[%clk 0:01:52]} 20. Na4 {[%clk 0:01:06]}  b6 {[%clk 0:01:52]} 21. b4 {[%clk 0:01:05]}  Bc2 {[%clk 0:01:42]} 22. Nb2 {[%clk 0:01:01]}  cxb4 {[%clk 0:01:41]} 23. Bxb4 {[%clk 0:00:57]}  Rxd2 {[%clk 0:01:35]} 24. Nc4 {[%clk 0:00:54]}  Rd8 {[%clk 0:01:34]} 25. Ne3 {[%clk 0:00:49]}  Ba4 {[%clk 0:01:30]} 26. Rab1 {[%clk 0:00:46]}  a5 {[%clk 0:01:16]} 27. Bxf8 {[%clk 0:00:45]}  Rhxf8 {[%clk 0:01:17]} 28. c4 {[%clk 0:00:43]}  Bc6 {[%clk 0:01:16]} 29. Rb2 {[%clk 0:00:43]}  Rb8 {[%clk 0:01:12]} 30. Rc1 {[%clk 0:00:41]}  Kd6 {[%clk 0:01:08]} 31. Rd2+ {[%clk 0:00:37]}  Kc5 {[%clk 0:01:07]} 32. Rcd1 {[%clk 0:00:34]}  Rb7 {[%clk 0:01:06]} 33. Kh2 {[%clk 0:00:33]}  Rff7 {[%clk 0:01:06]} 34. Rb1 {[%clk 0:00:26]}  Rfd7 {[%clk 0:01:06]} 35. Rdb2 {[%clk 0:00:27]}  g6 {[%clk 0:01:01]} 36. g4 {[%clk 0:00:26]}  Rd4 {[%clk 0:00:59]} 37. Kg3 {[%clk 0:00:26]}  Be4 {[%clk 0:00:53]} 38. Rb5+ {[%clk 0:00:25]}  Kc6 {[%clk 0:00:53]} 39. R1b2 {[%clk 0:00:22]}  Bd3 {[%clk 0:00:51]} 40. a4 {[%clk 0:00:16]}  Rdd7 {[%clk 0:00:44]} 41. R5b3 {[%clk 0:00:13]}  Kc5 {[%clk 0:00:38]} 42. Rb5+ {[%clk 0:00:11]}  Kd4 {[%clk 0:00:38]} 43. R5b3 {[%clk 0:00:12]}  Rd6 {[%clk 0:00:33]} 44. Rd2 {[%clk 0:00:12]}  e4 {[%clk 0:00:33]} 45. Rb5 {[%clk 0:00:10]}  Kc3 {[%clk 0:00:31]} 46. Rbb2 {[%clk 0:00:10]}  Rc6 {[%clk 0:00:27]} 47. Kf4 {[%clk 0:00:08]}  Rc5 {[%clk 0:00:23]} 48. f3 {[%clk 0:00:06]}  g5+ {[%clk 0:00:23]} 49. Kg3 {[%clk 0:00:06]}  exf3 {[%clk 0:00:22]} 50. Kxf3 {[%clk 0:00:07]}  Re5 {[%clk 0:00:21]} 51. Nd5+ {[%clk 0:00:05]}  Kxc4 {[%clk 0:00:22]} 52. Nxb6+ {[%clk 0:00:06]}  Kc3 {[%clk 0:00:21]} 53. Nd5+ {[%clk 0:00:06]}  Rxd5 {[%clk 0:00:20]} 54. Rxb7 {[%clk 0:00:04]}  Kxd2 {[%clk 0:00:20]} 0-1


[Site "https://www.chess.com"]

[Event "Titled Tuesday Blitz September 14 2021"]
[White "Sarana, Alexey"]
[Black "Jobava, Baadur"]
[WhiteFideId "24133795"]
[BlackFideId "13601520"]
[WhiteElo "2931"]
[BlackElo "2967"]
[Result "1-0"]
[Round "09"]
[TimeControl "180+1"]
[Date "2021.09.15"]
[WhiteClock "0:00:11"]
[BlackClock "0:00:15"]

1. e4 {[%clk 0:03:00]}  c6 {[%clk 0:02:53]} 2. Nf3 {[%clk 0:03:01]}  d5 {[%clk 0:02:54]} 3. d3 {[%clk 0:03:01]}  Bg4 {[%clk 0:02:52]} 4. h3 {[%clk 0:03:00]}  Bxf3 {[%clk 0:02:52]} 5. Qxf3 {[%clk 0:03:01]}  e6 {[%clk 0:02:53]} 6. Be2 {[%clk 0:02:59]}  g6 {[%clk 0:02:52]} 7. d4 {[%clk 0:02:55]}  Bg7 {[%clk 0:02:47]} 8. c3 {[%clk 0:02:55]}  Nf6 {[%clk 0:02:41]} 9. Nd2 {[%clk 0:02:55]}  dxe4 {[%clk 0:02:42]} 10. Nxe4 {[%clk 0:02:55]}  Nxe4 {[%clk 0:02:43]} 11. Qxe4 {[%clk 0:02:56]}  Nd7 {[%clk 0:02:44]} 12. O-O {[%clk 0:02:56]}  O-O {[%clk 0:02:43]} 13. Rd1 {[%clk 0:02:54]}  a5 {[%clk 0:02:42]} 14. a4 {[%clk 0:02:53]}  Re8 {[%clk 0:02:41]} 15. Be3 {[%clk 0:02:52]}  Nf6 {[%clk 0:02:40]} 16. Qc2 {[%clk 0:02:52]}  Nd5 {[%clk 0:02:41]} 17. Bd2 {[%clk 0:02:52]}  Qc7 {[%clk 0:02:38]} 18. Bf3 {[%clk 0:02:52]}  Rad8 {[%clk 0:02:34]} 19. Re1 {[%clk 0:02:50]}  Rd7 {[%clk 0:02:34]} 20. Re2 {[%clk 0:02:49]}  Red8 {[%clk 0:02:34]} 21. Rae1 {[%clk 0:02:48]}  Ne7 {[%clk 0:02:31]} 22. Bg5 {[%clk 0:02:47]}  h6 {[%clk 0:02:30]} 23. Bh4 {[%clk 0:02:46]}  Re8 {[%clk 0:02:27]} 24. Bg3 {[%clk 0:02:46]}  Qb6 {[%clk 0:02:26]} 25. Bf4 {[%clk 0:02:44]}  Nd5 {[%clk 0:02:22]} 26. Bd2 {[%clk 0:02:40]}  Qc7 {[%clk 0:02:23]} 27. g3 {[%clk 0:02:37]}  h5 {[%clk 0:02:22]} 28. h4 {[%clk 0:02:37]}  Bf6 {[%clk 0:02:17]} 29. Kg2 {[%clk 0:02:37]}  Kg7 {[%clk 0:02:17]} 30. Bc1 {[%clk 0:02:36]}  Rdd8 {[%clk 0:02:17]} 31. Qb3 {[%clk 0:02:35]}  Qd7 {[%clk 0:02:07]} 32. Bd2 {[%clk 0:02:24]}  Ra8 {[%clk 0:02:02]} 33. Rh1 {[%clk 0:02:13]}  Rh8 {[%clk 0:02:00]} 34. Qc2 {[%clk 0:02:13]}  Rad8 {[%clk 0:01:55]} 35. Qd3 {[%clk 0:02:13]}  Qc7 {[%clk 0:01:54]} 36. Qc4 {[%clk 0:02:11]}  Qb6 {[%clk 0:01:51]} 37. Rb1 {[%clk 0:02:08]}  Rd7 {[%clk 0:01:49]} 38. Be4 {[%clk 0:02:01]}  Rhd8 {[%clk 0:01:48]} 39. Bc2 {[%clk 0:02:02]}  Ne7 {[%clk 0:01:47]} 40. Bf4 {[%clk 0:02:00]}  Nd5 {[%clk 0:01:47]} 41. Bd2 {[%clk 0:01:58]}  Qc7 {[%clk 0:01:47]} 42. Rbe1 {[%clk 0:01:57]}  Nb6 {[%clk 0:01:47]} 43. Qb3 {[%clk 0:01:56]}  Nd5 {[%clk 0:01:41]} 44. Bc1 {[%clk 0:01:55]}  Rc8 {[%clk 0:01:32]} 45. Re4 {[%clk 0:01:49]}  Qd8 {[%clk 0:01:31]} 46. Bd3 {[%clk 0:01:45]}  Rb8 {[%clk 0:01:31]} 47. Qc2 {[%clk 0:01:44]}  b5 {[%clk 0:01:29]} 48. axb5 {[%clk 0:01:41]}  cxb5 {[%clk 0:01:30]} 49. Qe2 {[%clk 0:01:41]}  b4 {[%clk 0:01:26]} 50. c4 {[%clk 0:01:26]}  Ne7 {[%clk 0:01:27]} 51. Rf4 {[%clk 0:01:03]}  Bxd4 {[%clk 0:01:15]} 52. Qf3 {[%clk 0:00:28]}  Nf5 {[%clk 0:01:13]} 53. Bxf5 {[%clk 0:00:25]}  exf5 {[%clk 0:01:14]} 54. b3 {[%clk 0:00:21]}  Bc3 {[%clk 0:01:11]} 55. Re3 {[%clk 0:00:21]}  Bf6 {[%clk 0:01:04]} 56. c5 {[%clk 0:00:19]}  Rc8 {[%clk 0:00:51]} 57. c6 {[%clk 0:00:17]}  Rdc7 {[%clk 0:00:50]} 58. Rc4 {[%clk 0:00:18]}  Re7 {[%clk 0:00:20]} 59. Rd3 {[%clk 0:00:17]}  Qb6 {[%clk 0:00:19]} 60. Be3 {[%clk 0:00:17]}  Qb5 {[%clk 0:00:20]} 61. Rd5 {[%clk 0:00:17]}  Qa6 {[%clk 0:00:20]} 62. Rd6 {[%clk 0:00:15]}  Rec7 {[%clk 0:00:19]} 63. Rxf6 {[%clk 0:00:13]}  Kxf6 {[%clk 0:00:20]} 64. Bd4+ {[%clk 0:00:14]}  Ke7 {[%clk 0:00:20]} 65. Qe3+ {[%clk 0:00:15]}  Kf8 {[%clk 0:00:18]} 66. Qh6+ {[%clk 0:00:14]}  Ke7 {[%clk 0:00:18]} 67. Bc5+ {[%clk 0:00:11]}  Ke6 {[%clk 0:00:15]} 68. Qe3+ {[%clk 0:00:10]}  Kd5 {[%clk 0:00:16]} 69. Qf3+ {[%clk 0:00:08]}  Ke6 {[%clk 0:00:15]} 70. Re4+ {[%clk 0:00:04]}  Kd5 {[%clk 0:00:16]} 71. Rc4+ {[%clk 0:00:03]}  Ke6 {[%clk 0:00:17]} 72. Qe3+ {[%clk 0:00:04]}  Kd5 {[%clk 0:00:17]} 73. Bb6 {[%clk 0:00:04]}  Qb5 {[%clk 0:00:05]} 74. Qd4+ {[%clk 0:00:03]}  Ke6 {[%clk 0:00:05]} 75. Bxc7 {[%clk 0:00:04]}  Rxc7 {[%clk 0:00:05]} 76. Rc5 {[%clk 0:00:04]}  Qe2 {[%clk 0:00:04]} 77. Qd5+ {[%clk 0:00:02]}  Ke7 {[%clk 0:00:04]} 78. Rxa5 {[%clk 0:00:02]}  Qe4+ {[%clk 0:00:04]} 79. Qxe4+ {[%clk 0:00:02]}  fxe4 {[%clk 0:00:05]} 80. Re5+ {[%clk 0:00:03]}  Kd6 {[%clk 0:00:05]} 81. Rxe4 {[%clk 0:00:04]}  Kc5 {[%clk 0:00:05]} 82. Rc4+ {[%clk 0:00:04]}  Kb5 {[%clk 0:00:06]} 83. Kf3 {[%clk 0:00:05]}  Rxc6 {[%clk 0:00:06]} 84. Rxc6 {[%clk 0:00:05]}  Kxc6 {[%clk 0:00:07]} 85. Ke4 {[%clk 0:00:06]}  Kd6 {[%clk 0:00:08]} 86. Kd4 {[%clk 0:00:06]}  f6 {[%clk 0:00:08]} 87. Kc4 {[%clk 0:00:07]}  g5 {[%clk 0:00:09]} 88. Kxb4 {[%clk 0:00:07]}  gxh4 {[%clk 0:00:10]} 89. gxh4 {[%clk 0:00:07]}  Ke5 {[%clk 0:00:11]} 90. Kc3 {[%clk 0:00:07]}  Kf4 {[%clk 0:00:12]} 91. b4 {[%clk 0:00:08]}  Kg4 {[%clk 0:00:12]} 92. b5 {[%clk 0:00:08]}  Kxh4 {[%clk 0:00:12]} 93. b6 {[%clk 0:00:09]}  Kg4 {[%clk 0:00:13]} 94. b7 {[%clk 0:00:10]}  h4 {[%clk 0:00:14]} 95. b8=Q {[%clk 0:00:10]}  h3 {[%clk 0:00:15]} 96. Qh2 {[%clk 0:00:11]} 1-0


[Site "https://www.chess.com"]

[Event "Titled Tuesday Blitz September 14 2021"]
[White "Suleymanli, Aydin"]
[Black "Eljanov, Pavel"]
[WhiteFideId "13413937"]
[BlackFideId "14102951"]
[WhiteElo "2506"]
[BlackElo "2602"]
[Result "1-0"]
[Round "09"]
[TimeControl "180+1"]
[Date "2021.09.15"]
[WhiteClock "0:00:19"]
[BlackClock "0:00:11"]

1. d4 {[%clk 0:03:00]}  Nf6 {[%clk 0:02:59]} 2. c4 {[%clk 0:03:01]}  e6 {[%clk 0:02:59]} 3. Nc3 {[%clk 0:03:01]}  Bb4 {[%clk 0:02:58]} 4. f3 {[%clk 0:03:01]}  d5 {[%clk 0:02:56]} 5. a3 {[%clk 0:02:59]}  Bxc3+ {[%clk 0:02:56]} 6. bxc3 {[%clk 0:03:00]}  c5 {[%clk 0:02:53]} 7. cxd5 {[%clk 0:02:59]}  Nxd5 {[%clk 0:02:54]} 8. dxc5 {[%clk 0:02:58]}  f5 {[%clk 0:02:54]} 9. Nh3 {[%clk 0:02:35]}  O-O {[%clk 0:02:49]} 10. Qd2 {[%clk 0:02:08]}  Nc6 {[%clk 0:02:46]} 11. c4 {[%clk 0:02:01]}  Qh4+ {[%clk 0:02:38]} 12. g3 {[%clk 0:02:01]}  Qxc4 {[%clk 0:02:33]} 13. e4 {[%clk 0:02:00]}  Qc3 {[%clk 0:02:33]} 14. exd5 {[%clk 0:02:00]}  Qxa1 {[%clk 0:02:33]} 15. dxc6 {[%clk 0:02:00]}  bxc6 {[%clk 0:02:32]} 16. Bc4 {[%clk 0:01:48]}  Rb8 {[%clk 0:01:55]} 17. O-O {[%clk 0:01:46]}  Kh8 {[%clk 0:01:55]} 18. Ng5 {[%clk 0:01:41]}  Qf6 {[%clk 0:01:50]} 19. f4 {[%clk 0:00:50]}  h6 {[%clk 0:01:44]} 20. Nf3 {[%clk 0:00:49]}  Rd8 {[%clk 0:01:44]} 21. Qc2 {[%clk 0:00:46]}  Bd7 {[%clk 0:01:21]} 22. Re1 {[%clk 0:00:46]}  Qa1 {[%clk 0:01:12]} 23. Ne5 {[%clk 0:00:38]}  Be8 {[%clk 0:01:11]} 24. Bxe6 {[%clk 0:00:37]}  Bh5 {[%clk 0:00:24]} 25. Qxf5 {[%clk 0:00:28]}  Qc3 {[%clk 0:00:24]} 26. Rf1 {[%clk 0:00:22]}  Qd4+ {[%clk 0:00:12]} 27. Kg2 {[%clk 0:00:21]}  Rb2+ {[%clk 0:00:10]} 28. Bxb2 {[%clk 0:00:19]}  Qxb2+ {[%clk 0:00:11]} 29. Rf2 {[%clk 0:00:19]} 1-0


[Site "https://www.chess.com"]

[Event "Titled Tuesday Blitz September 14 2021"]
[White "Sviridov_Valery"]
[Black "Kamsky, Gata"]
[BlackFideId "2000024"]
[WhiteElo "2966"]
[BlackElo "2603"]
[Result "0-1"]
[Round "09"]
[TimeControl "180+1"]
[Date "2021.09.15"]
[WhiteClock "0:00:02"]
[BlackClock "0:00:23"]

1. Nf3 {[%clk 0:03:00]}  Nf6 {[%clk 0:02:59]} 2. g3 {[%clk 0:03:00]}  g6 {[%clk 0:02:58]} 3. Bg2 {[%clk 0:03:01]}  Bg7 {[%clk 0:02:59]} 4. O-O {[%clk 0:03:01]}  O-O {[%clk 0:02:59]} 5. c4 {[%clk 0:03:02]}  c6 {[%clk 0:02:58]} 6. Nc3 {[%clk 0:03:01]}  d5 {[%clk 0:02:56]} 7. cxd5 {[%clk 0:03:01]}  cxd5 {[%clk 0:02:56]} 8. d4 {[%clk 0:03:01]}  e6 {[%clk 0:02:52]} 9. Bg5 {[%clk 0:02:55]}  h6 {[%clk 0:02:46]} 10. Bf4 {[%clk 0:02:55]}  Nc6 {[%clk 0:02:44]} 11. Ne5 {[%clk 0:02:52]}  Bd7 {[%clk 0:02:43]} 12. Qd2 {[%clk 0:02:51]}  Nxe5 {[%clk 0:02:36]} 13. Bxe5 {[%clk 0:02:50]}  Bc6 {[%clk 0:02:33]} 14. Rac1 {[%clk 0:02:48]}  Qe7 {[%clk 0:02:31]} 15. Rc2 {[%clk 0:02:31]}  Rfd8 {[%clk 0:02:26]} 16. Rfc1 {[%clk 0:02:18]}  Bf8 {[%clk 0:02:26]} 17. Bxf6 {[%clk 0:02:19]}  Qxf6 {[%clk 0:02:25]} 18. e3 {[%clk 0:02:19]}  Qe7 {[%clk 0:02:16]} 19. Bf1 {[%clk 0:02:18]}  a6 {[%clk 0:02:12]} 20. Ne2 {[%clk 0:02:15]}  Rac8 {[%clk 0:02:10]} 21. Nf4 {[%clk 0:02:14]}  Bd7 {[%clk 0:02:07]} 22. Rc7 {[%clk 0:02:12]}  Rxc7 {[%clk 0:02:06]} 23. Rxc7 {[%clk 0:02:13]}  Rb8 {[%clk 0:02:03]} 24. Nd3 {[%clk 0:02:02]}  Qd8 {[%clk 0:02:00]} 25. Rc2 {[%clk 0:02:01]}  Ba4 {[%clk 0:01:52]} 26. Rc1 {[%clk 0:01:55]}  Be8 {[%clk 0:01:51]} 27. Ne5 {[%clk 0:01:54]}  Rc8 {[%clk 0:01:50]} 28. h4 {[%clk 0:01:53]}  Bd6 {[%clk 0:01:41]} 29. Bd3 {[%clk 0:01:51]}  Rxc1+ {[%clk 0:01:40]} 30. Qxc1 {[%clk 0:01:51]}  Qc7 {[%clk 0:01:41]} 31. Qxc7 {[%clk 0:01:50]}  Bxc7 {[%clk 0:01:41]} 32. a3 {[%clk 0:01:46]}  a5 {[%clk 0:01:40]} 33. Kf1 {[%clk 0:01:44]}  Kg7 {[%clk 0:01:40]} 34. Nf3 {[%clk 0:01:17]}  f6 {[%clk 0:01:38]} 35. Ke2 {[%clk 0:01:13]}  g5 {[%clk 0:01:37]} 36. hxg5 {[%clk 0:01:12]}  hxg5 {[%clk 0:01:36]} 37. g4 {[%clk 0:01:06]}  Bd7 {[%clk 0:01:35]} 38. Nd2 {[%clk 0:01:03]}  b6 {[%clk 0:01:27]} 39. Nf1 {[%clk 0:01:02]}  e5 {[%clk 0:01:23]} 40. f3 {[%clk 0:00:47]}  e4 {[%clk 0:01:20]} 41. fxe4 {[%clk 0:00:46]}  Bxg4+ {[%clk 0:01:19]} 42. Kf2 {[%clk 0:00:46]}  dxe4 {[%clk 0:01:19]} 43. Bxe4 {[%clk 0:00:47]}  f5 {[%clk 0:01:18]} 44. Bf3 {[%clk 0:00:39]}  Bh3 {[%clk 0:01:17]} 45. Bg2 {[%clk 0:00:31]}  Bg4 {[%clk 0:01:11]} 46. a4 {[%clk 0:00:29]}  Bd1 {[%clk 0:01:09]} 47. Bc6 {[%clk 0:00:29]}  Kf6 {[%clk 0:01:08]} 48. Nd2 {[%clk 0:00:29]}  g4 {[%clk 0:01:04]} 49. e4 {[%clk 0:00:26]}  fxe4 {[%clk 0:00:56]} 50. Nxe4+ {[%clk 0:00:27]}  Kf5 {[%clk 0:00:49]} 51. Nc3 {[%clk 0:00:27]}  Bb3 {[%clk 0:00:47]} 52. Bd7+ {[%clk 0:00:26]}  Kf4 {[%clk 0:00:44]} 53. Ne2+ {[%clk 0:00:25]}  Kg5 {[%clk 0:00:44]} 54. Nc3 {[%clk 0:00:20]}  Bc2 {[%clk 0:00:39]} 55. Bc6 {[%clk 0:00:19]}  Kh4 {[%clk 0:00:36]} 56. Kg2 {[%clk 0:00:18]}  g3 {[%clk 0:00:32]} 57. Bf3 {[%clk 0:00:18]}  Bf5 {[%clk 0:00:31]} 58. Nd5 {[%clk 0:00:15]}  Bh3+ {[%clk 0:00:31]} 59. Kg1 {[%clk 0:00:15]}  Bd8 {[%clk 0:00:31]} 60. Nc3 {[%clk 0:00:15]}  Bf6 {[%clk 0:00:30]} 61. Ne2 {[%clk 0:00:15]}  Bd7 {[%clk 0:00:30]} 62. b3 {[%clk 0:00:14]}  Be6 {[%clk 0:00:30]} 63. d5 {[%clk 0:00:14]}  Bf5 {[%clk 0:00:29]} 64. Kg2 {[%clk 0:00:14]}  Be5 {[%clk 0:00:30]} 65. Kg1 {[%clk 0:00:14]}  Bc2 {[%clk 0:00:29]} 66. Nc1 {[%clk 0:00:06]}  Bb2 {[%clk 0:00:28]} 67. Ne2 {[%clk 0:00:06]}  Bxb3 {[%clk 0:00:28]} 68. d6 {[%clk 0:00:07]}  Bxa4 {[%clk 0:00:27]} 69. Nf4 {[%clk 0:00:05]}  Bd7 {[%clk 0:00:26]} 70. Nd5 {[%clk 0:00:05]}  Bd4+ {[%clk 0:00:25]} 71. Kg2 {[%clk 0:00:06]}  Bh3+ {[%clk 0:00:24]} 72. Kh1 {[%clk 0:00:05]}  a4 {[%clk 0:00:24]} 73. Nb4 {[%clk 0:00:05]}  a3 {[%clk 0:00:25]} 74. Bc6 {[%clk 0:00:05]}  Bc5 {[%clk 0:00:24]} 75. Nc2 {[%clk 0:00:02]}  Bxd6 {[%clk 0:00:23]} 0-1


[Site "https://www.chess.com"]